bitfinex-derivatives/quotes_SOLF0:USTF0_20250623
["timestamp","ask_amount","ask_price","bid_price","bid_amount"]
[1750694804355,12.58970394,132.96,132.9,2.436]
[1750694805162,7.5198,132.93,132.9,2.436]
[1750694805463,12.58970394,132.96,132.9,2.436]
[1750694805663,7.5199,132.93,132.9,2.436]
[1750694805863,12.58970394,132.96,132.9,9.9571]
[1750694806063,12.58970394,132.96,132.9,2.436]
[1750694806257,7.5206,132.92,132.9,2.436]
[1750694806456,48.36,132.97,132.9,2.436]
[1750694806658,60.94970394,132.97,132.9,2.436]
[1750694806857,7.5195,132.94,132.91,7.5206]
[1750694807356,7.5196,132.93,132.9,9.957]
[1750694807954,60.94970394,132.97,132.9,2.436]
[1750694808156,48.36,132.97,132.9,15.02570394]
[1750694808661,48.36,132.97,132.9,2.436]
[1750694808962,48.36,132.97,132.9,15.02570394]
[1750694809157,7.5193,132.94,132.91,7.5205]
[1750694810666,48.36,132.97,132.92,12.58970394]
[1750694811157,48.36,132.97,132.9,22.54660394]
[1750694811470,48.36,132.97,132.9,15.02570394]
[1750694811964,48.36,132.97,132.9,2.436]
[1750694812361,7.5185,132.95,132.91,7.5203]
[1750694812555,48.36,132.97,132.91,12.58970394]
[1750694813160,48.36,132.97,132.92,7.5198]
[1750694813566,55.8776,132.97,132.93,20.10880394]
[1750694813865,48.36,132.97,132.93,20.10880394]
[1750694814067,55.8775,132.97,132.94,7.519]
[1750694814366,7.5175,132.97,132.94,7.519]
[1750694814565,7.517,132.98,132.94,10.014]
[1750694814963,710.68970394,133.0,132.94,10.014]
[1750694815271,7.5174,132.97,132.94,10.014]
[1750694815777,7.5174,132.97,132.95,7.5184]
[1750694816376,7.517,132.98,132.95,7.5184]
[1750694818071,698.1,133.0,132.94,12.4079]
[1750694818671,7.517,132.98,132.95,7.5183]
[1750694818867,48.76,133.0,132.95,12.58970394]
[1750694819068,7.5164,132.99,132.96,9.8925]
[1750694819277,48.76,133.0,132.96,2.375]
[1750694819574,48.76,133.03,132.97,12.58970394]
[1750694819780,7.5156,133.0,132.97,20.10660394]
[1750694820170,7.5163,132.99,132.97,12.58970394]
[1750694820473,6.0193532,133.02,132.96,2.375]
[1750694820676,61.34970394,133.03,132.96,2.375]
[1750694820876,7.5169,132.98,132.96,2.375]
[1750694821070,61.34970394,133.03,132.96,2.375]
[1750694821271,7.5184,132.95,132.94,4.8892]
[1750694821580,48.76,133.02,132.94,4.8892]
[1750694821872,18.61901616,133.01,132.94,17.47890394]
[1750694822063,12.58970394,133.01,132.95,2.4677]
[1750694822372,6.76747567,133.05,132.96,12.58970394]
[1750694822575,24.68170383,133.04,132.95,51.2277]
[1750694822769,12.58970394,133.0,132.95,2.4677]
[1750694822977,12.58970394,133.02,132.95,2.4677]
[1750694823170,6.04150729,133.01,132.95,2.4677]
[1750694823370,18.63533993,133.0,132.95,2.4677]
[1750694823580,12.58970394,133.0,132.95,2.4677]
[1750694823770,6.04681841,132.99,132.95,2.4677]
[1750694823973,12.58970394,133.0,132.95,2.4677]
[1750694824172,6.04642496,132.99,132.95,2.4677]
[1750694824373,7.5177,132.97,132.95,2.4677]
[1750694824973,7.5178,132.96,132.95,2.4677]
[1750694825971,7.5178,132.96,132.94,2.495]
[1750694826173,7.5175,132.97,132.94,2.495]
[1750694826372,61.32970394,133.01,132.94,2.495]
[1750694826573,6.04653929,133.0,132.94,2.495]
[1750694826772,61.32970394,133.01,132.94,2.495]
[1750694827082,12.58970394,132.99,132.94,2.495]
[1750694827678,6.04543021,132.98,132.91,12.58970394]
[1750694827883,12.58970394,132.99,132.92,7.5197]
[1750694828075,6.04516359,132.98,132.92,7.5197]
[1750694828276,7.5181,132.96,132.93,7.5195]
[1750694829182,7.5184,132.95,132.92,7.5199]
[1750694829683,7.5191,132.94,132.91,10.0502]
[1750694829982,12.58970394,132.97,132.91,2.5298]
[1750694830182,7.5198,132.93,132.91,2.5298]
[1750694830774,7.5193,132.94,132.91,2.5298]
[1750694830971,61.34970394,132.97,132.91,2.5298]
[1750694831288,7.5189,132.95,132.92,7.5198]
[1750694832080,7.519,132.94,132.92,7.5198]
[1750694832281,8.28310841,132.96,132.92,7.5198]
[1750694832587,7.5189,132.95,132.92,7.5198]
[1750694832786,8.28310841,132.96,132.91,10.0502]
[1750694832977,8.28310841,132.96,132.91,2.5298]
[1750694833181,7.5189,132.95,132.91,2.5298]
[1750694833487,7.5189,132.95,132.92,7.5201]
[1750694833781,8.28310841,133.0,132.91,2.5298]
[1750694833782,8.28310841,133.0,132.94,8.28310841]
[1750694834173,7.5169,132.98,132.94,8.28310841]
[1750694834377,8.28310841,133.0,132.94,8.28310841]
[1750694834378,48.76,133.01,132.94,8.28310841]
[1750694834574,8.28310841,133.0,132.94,8.28310841]
[1750694834781,7.5164,132.99,132.96,7.5176]
[1750694836085,8.28310841,132.99,132.91,2.5298]
[1750694836291,8.28310841,132.99,132.91,10.81290841]
[1750694836595,8.28310841,132.95,132.91,2.5298]
[1750694836781,7.52,132.93,132.91,2.5298]
[1750694837181,7.5201,132.92,132.91,2.5298]
[1750694837381,48.76,132.97,132.9,2.3484]
[1750694837593,8.28310841,132.93,132.87,59.32770841]
[1750694837787,7.521,132.91,132.88,7.5221]
[1750694838481,7.5213,132.9,132.88,7.5221]
[1750694838676,7.5213,132.9,132.87,71.19401661]
[1750694838886,7.5213,132.9,132.87,58.5671]
[1750694839688,7.521,132.91,132.88,7.5223]
[1750694840087,12.62691661,132.94,132.87,51.0446]
[1750694840287,12.62691661,132.94,132.89,7.5217]
[1750694840489,12.62691661,132.94,132.87,51.0446]
[1750694840877,7.5204,132.92,132.89,7.5217]
[1750694841079,12.62691661,132.94,132.87,51.0446]
[1750694841985,7.5197,132.93,132.91,7.5206]
[1750694842292,7.5197,132.93,132.87,51.0446]
[1750694843087,7.5197,132.93,132.9,7.5209]
[1750694843289,7.5197,132.93,132.87,51.0446]
[1750694843686,7.5197,132.93,132.9,7.5209]
[1750694843884,7.5192,132.94,132.88,12.62691661]
[1750694844185,7.5192,132.94,132.87,51.0446]
[1750694844386,12.62691661,132.96,132.87,51.0446]
[1750694844387,12.62691661,132.96,132.88,12.62691661]
[1750694844590,48.76,132.97,132.92,12.62691661]
[1750694844785,60.74691661,133.0,132.94,7.5187]
[1750694845195,60.74691661,133.0,132.93,4.9264]
[1750694845385,12.62691661,132.98,132.93,12.4456]
[1750694845586,7.5181,132.96,132.93,12.4456]
[1750694845791,12.62691661,132.98,132.93,4.9264]
[1750694846093,7.5164,132.99,132.94,12.62691661]
[1750694846285,7.5164,132.99,132.96,7.5173]
[1750694846489,48.12,133.0,132.94,12.62691661]
[1750694846690,48.12,133.03,132.96,12.62691661]
[1750694846899,48.12,133.03,132.98,7.5166]
[1750694847194,7.5151,133.01,132.96,12.62691661]
[1750694847587,1.74295,133.06,133.0,12.62691661]
[1750694847886,1.74295,133.06,133.0,55.6153]
[1750694848085,1.74295,133.06,133.0,48.1]
[1750694848287,7.5134,133.04,133.0,52.9939]
[1750694848590,1.74295,133.06,133.0,52.9939]
[1750694848994,1.74295,133.06,133.0,60.509]
[1750694849293,1.74295,133.06,133.0,52.9939]
[1750694849484,1.74295,133.06,133.02,7.5144]
[1750694849686,1.74295,133.06,133.01,12.62691661]
[1750694849881,7.5137,133.04,133.0,52.9939]
[1750694850086,12.62691661,133.01,132.94,14.02125535]
[1750694850283,12.62691661,133.01,132.92,12.62691661]
[1750694850690,12.62691661,133.01,132.94,7.5187]
[1750694850891,7.5171,132.98,132.92,12.62691661]
[1750694851100,7.5171,132.98,132.94,20.14561661]
[1750694851689,7.5173,132.97,132.94,20.14561661]
[1750694854700,7.518,132.96,132.94,12.62691661]
[1750694855208,7.5185,132.95,132.92,20.14681661]
[1750694855502,18.52201735,133.01,132.92,12.62691661]
[1750694855690,12.62691661,133.01,132.92,12.62691661]
[1750694856799,7.5176,132.97,132.94,7.5187]
[1750694857502,7.5181,132.96,132.93,7.5194]
[1750694857817,7.5181,132.96,132.93,12.62691661]
[1750694858111,7.5175,132.97,132.94,7.5189]
[1750694858293,12.62691661,133.01,132.93,12.62691661]
[1750694858489,7.5176,132.97,132.94,7.519]
[1750694860202,7.518,132.96,132.93,20.14621661]
[1750694860399,60.72691661,132.99,132.91,60.72691661]
[1750694861204,60.72691661,132.99,132.93,7.5192]
[1750694862194,48.1,132.99,132.93,15.79964286]
[1750694862400,48.1,132.99,132.94,7.519]
[1750694862602,48.1,132.99,132.93,8.28044286]
[1750694862908,7.5177,132.97,132.94,7.5189]
[1750694863406,7.5179,132.96,132.93,7.5195]
[1750694863606,48.1,132.99,132.92,8.28044286]
[1750694863902,7.5177,132.97,132.92,8.28044286]
[1750694864308,48.1,132.99,132.93,7.5192]
[1750694864502,8.28044286,133.01,132.94,8.28044286]
[1750694864710,8.28044286,133.01,132.95,7.518]
[1750694865109,8.28044286,133.01,132.94,8.28044286]
[1750694865413,7.5174,132.97,132.94,15.79894286]
[1750694865609,8.28044286,133.01,132.94,8.28044286]
[1750694866005,8.28044286,133.01,132.91,48.1]
[1750694866205,8.28044286,132.97,132.91,48.1]
[1750694866408,8.28044286,132.97,132.91,56.38044286]
[1750694866598,7.5184,132.95,132.91,48.1]
[1750694866805,8.28044286,132.97,132.91,8.28044286]
[1750694867006,7.5187,132.95,132.92,7.5198]
[1750694867404,8.28044286,132.97,132.91,15.80084286]
[1750694867705,7.5187,132.95,132.91,8.28044286]
[1750694868211,7.5187,132.95,132.92,7.5198]
[1750694868800,8.28044286,132.97,132.91,8.28044286]
[1750694869111,48.1,132.98,132.93,8.28044286]
[1750694869414,55.617,132.98,132.95,7.5181]
[1750694869812,8.28044286,133.0,132.93,8.28044286]
[1750694870015,48.1,133.01,132.95,8.28044286]
[1750694870716,7.5167,132.98,132.96,7.5176]
[1750694871310,7.5164,132.99,132.96,7.5176]
[1750694871819,7.5168,132.98,132.95,15.79854286]
[1750694872016,8.28044286,133.03,132.97,8.28044286]
[1750694872317,7.516,133.0,132.97,15.79744286]
[1750694872618,8.28044286,133.03,132.97,15.79744286]
[1750694872811,7.516,133.0,132.97,15.79744286]
[1750694873211,8.28044286,133.03,132.97,15.79744286]
[1750694873412,7.5159,133.0,132.98,7.5166]
[1750694873818,7.5159,133.0,132.97,8.28044286]
[1750694874013,7.5162,132.99,132.97,8.28044286]
[1750694874214,7.5162,132.99,132.97,7.517]
[1750694874424,8.28044286,133.03,132.96,8.28044286]
[1750694874625,14.31869783,133.03,132.96,8.28044286]
[1750694874920,14.31869783,133.03,132.96,15.79804286]
[1750694875125,14.31869783,133.03,132.96,8.28044286]
[1750694875314,14.31869783,133.03,132.96,15.79794286]
[1750694875514,7.5164,132.99,132.96,8.28044286]
[1750694875923,7.5164,132.99,132.97,7.517]
[1750694876517,7.5164,132.99,132.96,8.28044286]
[1750694877225,7.5157,133.0,132.97,7.5168]
[1750694877417,8.28044286,133.03,132.96,8.28044286]
[1750694877618,7.5154,133.01,132.97,7.5173]
[1750694877927,7.5154,133.01,132.96,8.28044286]
[1750694878222,7.5147,133.02,132.98,7.5165]
[1750694878419,46.34,133.04,132.98,8.28044286]
[1750694878925,7.5143,133.03,132.99,7.5158]
[1750694879225,46.34,133.04,132.98,8.28044286]
[1750694879426,7.5142,133.03,133.0,7.5155]
[1750694879614,7.5142,133.03,132.98,8.28044286]
[1750694880214,7.5142,133.03,133.0,7.5153]
[1750694880409,1.74295,133.06,132.97,7.3669]
[1750694880615,1.74295,133.06,133.02,8.28044286]
[1750694880812,1.74295,133.06,133.01,15.79514286]
[1750694881125,7.5136,133.04,133.01,15.79514286]
[1750694882625,7.513,133.05,133.02,7.5142]
[1750694882815,1.74295,133.06,133.03,8.28044286]
[1750694883018,1.74295,133.06,133.02,8.28044286]
[1750694883419,8.28044286,133.11,133.04,8.28044286]
[1750694883621,5.95601518,133.11,133.06,8.28044286]
[1750694883928,46.32,133.12,133.08,8.28044286]
[1750694884122,8.28044286,133.14,133.04,46.32]
[1750694884319,5.9543125,133.13,133.06,8.28044286]
[1750694884627,8.28044286,133.13,133.07,8.28044286]
[1750694885127,5.95681169,133.14,133.07,8.28044286]
[1750694885329,8.28044286,133.13,133.07,15.79194286]
[1750694885634,8.28044286,133.14,133.07,15.79194286]
[1750694885825,8.28044286,133.14,133.07,8.28044286]
[1750694886523,8.28044286,133.13,133.07,8.28044286]
[1750694886824,8.28044286,133.13,133.05,2.4889]
[1750694887025,8.28044286,133.11,133.05,2.4889]
[1750694887225,8.28044286,133.11,133.03,8.28044286]
[1750694887226,7.5122,133.06,133.03,15.79394286]
[1750694887622,46.32,133.11,132.93,49.36572836]
[1750694887623,8.28044286,133.05,133.0,7.5156]
[1750694887940,8.28044286,133.03,132.97,13.16914286]
[1750694888227,46.32,133.04,132.9,649.12]
[1750694888228,8.28044286,133.01,132.94,8.28044286]
[1750694888724,46.32,133.04,132.94,8.28044286]
[1750694888925,8.28044286,133.03,132.96,8.28044286]
[1750694889223,8.28044286,133.01,132.95,8.28044286]
[1750694889418,8.28044286,133.01,132.95,15.79844286]
[1750694889618,8.28044286,133.01,132.95,8.28044286]
[1750694890218,12.61454313,133.02,132.95,12.61454313]
[1750694890726,12.61454313,133.02,132.96,7.5178]
[1750694890923,46.32,133.04,132.96,7.5178]
[1750694891127,12.61454313,133.03,132.96,7.5178]
[1750694891332,7.5171,132.98,132.95,20.13284313]
[1750694891826,7.5171,132.98,132.96,7.5178]
[1750694892627,7.5171,132.98,132.95,12.61454313]
[1750694892628,7.5171,132.98,132.95,20.13264313]
[1750694894328,7.5173,132.97,132.94,20.13324313]
[1750694894632,46.32,133.0,132.94,12.61454313]
[1750694894833,46.32,133.0,132.94,20.13324313]
[1750694895327,7.5166,132.99,132.94,12.61454313]
[1750694895534,46.32,133.0,132.94,12.61454313]
[1750694895730,46.32,133.03,132.98,12.61454313]
[1750694897225,7.5153,133.01,132.98,20.13124313]
[1750694897729,46.32,133.03,132.98,12.61454313]
[1750694898033,46.32,133.03,132.97,2.4808]
[1750694898332,12.61454313,133.02,132.95,12.61454313]
[1750694899121,12.61454313,133.02,132.93,48.8008]
[1750694899322,12.61454313,133.02,132.93,61.41534313]
[1750694899933,7.518,132.96,132.93,61.41534313]
[1750694900333,46.32,132.99,132.93,2.4808]
[1750694900635,7.5188,132.95,132.93,2.4808]
[1750694900836,46.32,132.99,132.93,2.4808]
[1750694901534,7.5194,132.94,132.91,25.04874313]
[1750694901741,7.5194,132.94,132.91,17.52824313]
[1750694902236,12.61454313,132.98,132.91,15.00824313]
[1750694902433,12.61454313,132.98,132.91,2.3937]
[1750694902631,12.61454313,132.98,132.91,9.9142]
[1750694902829,7.5196,132.93,132.91,2.3937]
[1750694903031,12.61454313,132.98,132.89,12.61454313]
[1750694903227,7.5206,132.92,132.89,20.13594313]
[1750694903431,45.72,132.95,132.89,12.61454313]
[1750694903831,45.72,132.95,132.89,20.13604313]
[1750694904031,45.72,132.95,132.88,60.75684313]
[1750694904538,12.61454313,132.94,132.88,2.4223]
[1750694904729,12.61454313,132.94,132.87,2.482]
[1750694904929,7.5213,132.9,132.87,10.0047]
[1750694905130,12.61454313,132.94,132.87,7.5227]
[1750694905534,58.33454313,132.95,132.86,15.04554313]
[1750694905738,2.4861,132.99,132.9,12.61454313]
[1750694905926,45.74,132.98,132.92,12.61454313]
[1750694906130,45.74,132.98,132.89,45.74]
[1750694906440,45.74,132.98,132.91,12.61454313]
[1750694906937,45.74,132.98,132.9,12.61454313]
[1750694907142,7.5193,132.94,132.91,7.5204]
[1750694907640,7.5193,132.94,132.89,58.35454313]
[1750694907828,7.5193,132.94,132.91,7.5201]
[1750694908030,7.5187,132.95,132.89,58.35454313]
[1750694908439,7.5187,132.95,132.9,2.344]
[1750694908641,7.518,132.96,132.9,2.344]
[1750694908838,45.74,132.98,132.91,12.61454313]
[1750694909038,45.74,132.98,132.91,14.94064313]
[1750694909238,7.5176,132.97,132.91,14.94064313]
[1750694909431,45.74,132.98,132.91,14.94064313]
[1750694909640,45.74,132.98,132.93,7.5191]
[1750694909843,45.74,132.98,132.91,14.94064313]
[1750694910335,7.5182,132.96,132.93,7.5191]
[1750694910534,58.35454313,132.98,132.91,2.3261]
[1750694910744,58.35454313,132.98,132.91,9.8465]
[1750694910942,7.5191,132.94,132.91,2.3261]
[1750694911134,58.35454313,132.98,132.91,2.3261]
[1750694911339,12.61454313,132.96,132.91,2.3261]
[1750694911635,12.61454313,132.96,132.9,2.344]
[1750694912030,7.5205,132.92,132.9,2.344]
[1750694912943,7.5207,132.91,132.9,2.344]
[1750694913251,7.5207,132.91,132.88,12.61454313]
[1750694913252,7.5207,132.91,132.88,20.13664313]
[1750694913438,7.5215,132.9,132.88,12.61454313]
[1750694913937,7.5198,132.93,132.88,12.61454313]
[1750694914140,48.2474,132.97,132.9,12.61454313]
[1750694914337,48.2474,132.97,132.9,20.13534313]
[1750694914533,7.5192,132.94,132.9,20.13534313]
[1750694914735,7.5192,132.94,132.9,7.5208]
[1750694914942,7.5192,132.94,132.91,7.5205]
[1750694915243,45.74,132.97,132.89,12.61454313]
[1750694915443,45.74,132.97,132.92,7.5196]
[1750694915646,45.74,132.97,132.88,62.0]
[1750694915647,7.5183,132.96,132.91,12.61454313]
[1750694916143,7.5186,132.95,132.91,12.61454313]
[1750694916447,45.74,132.97,132.93,7.5193]
[1750694916840,7.5181,132.96,132.93,7.5193]
[1750694917246,7.5182,132.96,132.91,12.61454313]
[1750694917649,45.74,132.97,132.91,12.61454313]
[1750694917843,7.5179,132.96,132.92,2.3017]
[1750694918149,45.74,132.97,132.94,7.5186]
[1750694918448,45.74,132.97,132.92,2.3017]
[1750694918650,45.74,132.97,132.95,7.5181]
[1750694918949,7.5168,132.98,132.95,7.5181]
[1750694919146,45.74,133.0,132.97,7.5172]
[1750694919351,45.74,133.0,132.95,12.61454313]
[1750694919659,707.61454313,133.03,132.95,12.61454313]
[1750694919843,7.5159,133.0,132.95,12.61454313]
[1750694920244,7.5159,133.0,132.96,8.2764167]
[1750694920441,7.5162,132.99,132.96,15.7937167]
[1750694921147,703.2764167,133.03,132.96,8.2764167]
[1750694921353,8.2764167,133.01,132.94,8.2764167]
[1750694922252,7.5173,132.97,132.94,7.5187]
[1750694922749,7.5173,132.97,132.94,7.5189]
[1750694923851,7.517,132.98,132.95,7.5184]
[1750694924051,12.61735822,133.02,132.93,15.06865822]
[1750694924454,695.0,133.03,132.93,15.06865822]
[1750694924455,7.5167,132.99,132.93,15.06865822]
[1750694924647,7.5167,132.99,132.95,12.61735822]
[1750694924949,695.0,133.03,132.97,12.61735822]
[1750694925350,7.5168,132.98,132.95,65.87545822]
[1750694925657,7.5168,132.98,132.95,7.5181]
[1750694926445,58.35735822,132.99,132.93,2.4513]
[1750694927051,58.35735822,132.99,132.93,9.9704]
[1750694927456,58.35735822,132.99,132.93,2.4513]
[1750694927658,12.61735822,132.97,132.88,58.35735822]
[1750694927849,45.74,132.99,132.89,12.61735822]
[1750694928053,7.5182,132.96,132.91,12.61735822]
[1750694928359,7.5182,132.96,132.92,7.5197]
[1750694928556,58.35735822,132.99,132.92,7.5197]
[1750694928768,7.5187,132.95,132.92,7.5197]
[1750694929261,7.5181,132.96,132.92,7.5197]
[1750694929658,58.35735822,132.99,132.92,7.5197]
[1750694929859,7.5185,132.95,132.92,7.5197]
[1750694930655,7.5185,132.95,132.91,20.13775822]
[1750694930858,7.5185,132.95,132.91,12.61735822]
[1750694931062,7.5192,132.94,132.91,12.61735822]
[1750694931462,58.35735822,132.99,132.91,12.61735822]
[1750694931661,58.35735822,132.99,132.88,45.74]
[1750694931959,45.74,132.99,132.92,12.61735822]
[1750694932162,45.74,132.99,132.93,2.3178]
[1750694932163,7.5176,132.97,132.93,2.3178]
[1750694932358,45.74,132.99,132.93,4.7114]
[1750694932557,45.74,132.99,132.94,7.5188]
[1750694932758,7.517,132.98,132.93,4.7114]
[1750694932963,45.74,132.99,132.93,4.7114]
[1750694934062,53.2563,132.99,132.96,7.5175]
[1750694934262,46.04,133.02,132.94,15.01825822]
[1750694934559,7.5165,132.99,132.96,7.5178]
[1750694934767,46.04,133.02,132.94,15.01825822]
[1750694935355,7.5165,132.99,132.96,7.5178]
[1750694936960,46.04,133.02,132.94,15.01825822]
[1750694937271,12.61735822,133.01,132.93,17.32875822]
[1750694937856,46.04,133.02,132.95,12.61735822]
[1750694938361,7.5168,132.98,132.95,12.61735822]
[1750694938764,7.5168,132.98,132.95,20.13545822]
[1750694938970,46.04,133.02,132.95,12.61735822]
[1750694939470,7.5156,133.0,132.96,7.5173]
[1750694939767,12.61735822,133.0,132.93,4.7114]
[1750694940364,58.65735822,133.02,132.94,12.61735822]
[1750694940566,58.65735822,133.02,132.95,7.5182]
[1750694940867,58.65735822,133.02,132.94,12.61735822]
[1750694941067,12.61735822,133.0,132.94,7.5186]
[1750694941572,7.5182,132.96,132.94,7.5186]
[1750694941764,12.61735822,132.98,132.93,2.3178]
[1750694942470,58.65735822,132.98,132.93,2.3178]
[1750694942866,58.65735822,132.98,132.91,20.13775822]
[1750694943073,58.65735822,132.98,132.91,7.5204]
[1750694943463,58.65735822,132.98,132.9,4.8753]
[1750694943661,12.61735822,132.96,132.89,48.4971]
[1750694944166,12.61735822,132.96,132.89,56.0186]
[1750694944365,8.28663577,132.95,132.89,56.0186]
[1750694944869,2.3507,132.97,132.9,7.5212]
[1750694945063,8.28663577,132.97,132.9,8.28663577]
[1750694945469,8.28663577,132.97,132.92,7.5201]
[1750694945970,8.28663577,132.97,132.93,7.5195]
[1750694946363,46.04,132.98,132.93,7.5195]
[1750694946567,46.04,132.98,132.93,8.28663577]
[1750694947064,7.5176,132.97,132.93,8.28663577]
[1750694947672,7.5176,132.97,132.94,7.5185]
[1750694947871,8.28663577,133.0,132.92,2.4018]
[1750694948068,8.28663577,133.0,132.94,8.28663577]
[1750694948273,217.89662765,133.01,132.94,7.5187]
[1750694948469,7.5176,132.97,132.94,7.5187]
[1750694948669,7.5176,132.97,132.93,58.65662765]
[1750694948670,217.89662765,133.01,132.93,46.04]
[1750694948871,12.61662765,132.97,132.88,14.02218938]
[1750694949072,12.61662765,132.93,132.86,31.46451703]
[1750694949266,46.04,132.92,132.86,2.383]
[1750694949976,46.04,132.92,132.86,7.5232]
[1750694950174,7.5222,132.89,132.86,7.5232]
[1750694950673,46.04,132.92,132.85,14.574431]
[1750694950978,46.04,132.92,132.85,7.050531]
[1750694951182,7.5227,132.88,132.85,7.050531]
[1750694951479,46.04,132.92,132.85,7.050531]
[1750694951777,7.5221,132.89,132.86,7.5231]
[1750694951974,7.5221,132.89,132.85,7.050531]
[1750694951975,46.04,132.92,132.85,7.050531]
[1750694952172,7.5231,132.87,132.85,7.050531]
[1750694952572,12.61662765,132.87,132.85,4.691931]
[1750694952775,7.5235,132.86,132.85,3.1e-05]
[1750694953178,20.14012765,132.86,132.85,3.1e-05]
[1750694953370,7.5235,132.86,132.85,3.1e-05]
[1750694954276,20.14012765,132.86,132.85,3.1e-05]
[1750694954578,7.5235,132.86,132.85,3.1e-05]
[1750694955975,7.5234,132.87,132.85,3.1e-05]
[1750694956182,46.04,132.88,132.85,3.1e-05]
[1750694956684,7.5235,132.86,132.85,3.1e-05]
[1750694957674,7.5231,132.87,132.85,3.1e-05]
[1750694957888,46.06,132.9,132.85,7.523731]
[1750694958187,46.06,132.9,132.85,3.1e-05]
[1750694958389,46.06,132.9,132.85,7.523731]
[1750694958581,46.06,132.9,132.85,3.1e-05]
[1750694959474,7.5235,132.86,132.85,3.1e-05]
[1750694966097,20.14012765,132.86,132.85,3.1e-05]
[1750694966299,7.5235,132.86,132.85,3.1e-05]
[1750694967001,53.0435,132.86,132.85,3.1e-05]
[1750694973205,45.52,132.92,132.85,3.1e-05]
[1750694973407,45.52,132.92,132.85,12.61665865]
[1750694973598,7.5216,132.9,132.86,2.3465]
[1750694973801,7.5216,132.9,132.87,7.5229]
[1750694974006,7.5216,132.9,132.86,14.96312765]
[1750694974408,7.521,132.91,132.86,14.96312765]
[1750694974605,45.52,132.92,132.88,12.61662765]
[1750694974802,45.52,132.92,132.89,7.5215]
[1750694974995,707.57662765,132.95,132.89,7.5215]
[1750694975195,12.61662765,132.93,132.86,2.3465]
[1750694975613,12.61662765,132.92,132.86,2.3465]
[1750694975906,45.52,132.91,132.86,2.3465]
[1750694976297,7.5228,132.88,132.86,2.3465]
[1750694976909,7.5228,132.88,132.86,9.87]
[1750694977308,7.5228,132.88,132.86,2.3465]
[1750694977812,45.52,132.91,132.86,2.3465]
[1750694978311,7.5229,132.87,132.86,2.3465]
[1750694978709,45.52,132.91,132.86,2.3465]
[1750694978912,7.5226,132.88,132.86,2.3465]
[1750694979511,7.5229,132.87,132.86,2.3465]
[1750694980005,45.52,132.91,132.85,3.1e-05]
[1750694980006,7.5235,132.86,132.85,3.1e-05]
[1750694981908,12.61662765,132.83,132.66,14.02218938]
[1750694982205,12.61662765,132.8,132.68,2.4298]
[1750694982406,12.61662765,132.75,132.68,2.4298]
[1750694982612,58.13662765,132.79,132.71,12.61662765]
[1750694982803,7.5301,132.75,132.72,12.61662765]
[1750694983211,206.4546,132.82,132.74,12.61662765]
[1750694983511,206.4546,132.82,132.76,12.61662765]
[1750694983512,45.52,132.82,132.76,12.61662765]
[1750694983917,7.5278,132.79,132.76,12.61662765]
[1750694984101,45.52,132.82,132.76,12.61662765]
[1750694984502,7.5278,132.79,132.76,12.61662765]
[1750694985509,7.5284,132.78,132.74,14.96642765]
[1750694986399,7.5286,132.77,132.74,9.8797]
[1750694986605,58.13662765,132.82,132.74,2.3498]
[1750694987007,7.5288,132.77,132.74,2.3498]
[1750694987202,58.13662765,132.82,132.74,2.3498]
[1750694987420,58.13662765,132.82,132.74,9.88]
[1750694987911,7.5291,132.77,132.74,2.3498]
[1750694988317,12.61662765,132.8,132.74,2.3498]
[1750694988518,7.5291,132.77,132.74,9.8801]
[1750694988709,7.5291,132.77,132.74,2.3498]
[1750694989316,12.61662765,132.8,132.74,2.3498]
[1750694989816,7.5284,132.78,132.74,9.8797]
[1750694990117,12.61662765,132.8,132.74,9.8797]
[1750694990312,12.61662765,132.76,132.68,12.61662765]
[1750694990515,12.61662765,132.8,132.68,58.15662765]
[1750694990516,45.54,132.77,132.68,58.15662765]
[1750694990718,12.61662765,132.76,132.68,58.15662765]